Cogmind - Beta 10.2 *** ADVENTURER MODE // 2022.02.17 @ 07:57:16 Player: woegarden Result: Destroyed by G-34 Mercenary with Small Laser Performance ------------- Evolutions (1) 500 Regions Visited (2) 400 Robots Destroyed (13) 65 Value Destroyed (311) 311 Prototype IDs (0) 0 Alien Tech Used (0) 0 Bonus (0) 0 TOTAL SCORE: 1276 Bonus ------- None Cogmind --------- Core Integrity 0/400 Matter 171/300 Energy 100/100 System Corruption 0% Temperature Cool (6) Movement Core (150) Ox2 Location -9/Materials Parts ------- > --- POWER (2) -------- (None) > --- PROPULSION (2) --- (None) > --- UTILITY (3) ------ Medium Storage Unit Signal Interpreter > --- WEAPON (2) ------- (None) > --- INVENTORY (8) ---- Light Ion Engine Medium Battery (200) Terrain Scanner Light EM Pulse Cannon Particle Cannon Light Cannon Mini Grenade Launcher Peak State ------------ > --- POWER ------------ Ion Engine Light Ion Engine > --- PROPULSION ------- Hover Unit Hover Unit > --- UTILITY ---------- Medium Storage Unit Signal Interpreter Terrain Scan Processor > --- WEAPON ----------- Light EM Pulse Cannon Mini Grenade Launcher > --- INVENTORY -------- Medium Battery Terrain Scanner Particle Cannon Light Cannon [Rating: 12] Favorites ----------- Power Light Ion Engine Engine Light Ion Engine Propulsion Light Treads Treads Light Treads Wheel Wheel Hover Unit Hover Unit Utility Small Storage Unit Device Sensor Array Storage Small Storage Unit Processor Signal Interpreter Weapon EM Pulse Gun Energy Gun EM Pulse Gun Energy Cannon Light EM Pulse Cannon Ballistic Cannon Light Cannon Launcher Mini Grenade Launcher Build | -11 -10 -9 ------- Run | Scr Mat Mat Slots Evolved 2 | . . 2 Power 1 | . . 1 Propulsion . | . . . Utility 1 | . . 1 Weapon . | . . . Parts Attached 31 | 5 19 7 Power 5 | 1 2 2 Engine 5 | 1 2 2 Core . | . . . Reactor . | . . . Propulsion 9 | 2 6 1 Treads 2 | 2 . . Leg . | . . . Wheel 4 | . 4 . Hover 3 | . 2 1 Flight . | . . . Utility 10 | 1 6 3 Device 4 | . 3 1 Storage 4 | 1 3 . Processor 2 | . . 2 Hackware . | . . . Protection . | . . . Artifact . | . . . Weapon 7 | 1 5 1 Energy Gun 3 | 1 2 . Energy Cannon 1 | . . 1 Ballistic Gun . | . . . Ballistic Cannon 2 | . 2 . Launcher 1 | . 1 . Special Weapon . | . . . Impact Weapon . | . . . Slashing Weapon . | . . . Piercing Weapon . | . . . Special Melee Weapon . | . . . Unidentified Prototypes . | . . . Parts Lost 5 | . . 5 Power 2 | . . 2 Propulsion 3 | . . 3 Utility . | . . . Weapon . | . . . Highest Loss Streak 3 | . . 3 Average Slot Usage (%) 86 | . 93 52 Engine 12 | . 14 6 Treads 9 | . 10 . Wheel 8 | . 10 . Hover 6 | . 5 11 Device 7 | . 8 1 Storage 14 | . 14 11 Processor 2 | . . 15 Energy Gun 10 | . 12 . Ballistic Cannon 9 | . 10 . Launcher 3 | . 3 4 Naked Turns . | . . . Heaviest Build 16 | 11 16 16 Greatest Support 40 | 40 40 12 Greatest Overweight (x) 4 | . 4 4 Average Overweight (x) . | . . 1 Largest Inventory Capacity 10 | 6 10 8 Average Capacity 6 | 5 6 8 Most Carried 7 | 4 6 7 Average Carried 4 | 1 4 5 Final Capacity 8 | 6 8 8 Final Carried 7 | 1 4 7 Class Distribution -------------------- 100% | Mutant Dominant Class ---------------- Mutant | -10/Materials Mutant | -9/Materials Resources | -11 -10 -9 ----------- Run | Scr Mat Mat Matter Collected 451 | 212 230 9 Remotely . | . . . Salvage Created 408 | . 399 9 Parts 27 | . 25 2 Haulers Intercepted . | . . . Recyclers Shooed . | . . . Parts Field Recycled . | . . . Retrieved Matter . | . . . Parts Self-Destructed . | . . . Prevented . | . . . Kills | -11 -10 -9 ------- Run | Scr Mat Mat Combat Hostiles Destroyed 6 | . 6 . Cannons 1 | . 1 . AOE 5 | . 5 . Classes Destroyed 6 | . 5 1 Worker 2 | . 2 . Builder 1 | . 1 . Recycler 2 | . 2 . Operator 1 | . . 1 Watcher 1 | . 1 . Grunt 6 | . 6 . Best Kill Streak 3 | . 3 1 Combat Bots Only 3 | . 3 . Max Kills in Single Turn 2 | . 2 1 Gunslinging . | . . . Exploded 1 | . 1 . Melee . | . . . Uniques/NPCs Destroyed . | . . . Combat | -11 -10 -9 -------- Run | Scr Mat Mat Damage Taken 954 | . 299 655 Core 455 | . 52 403 Absorbed by Shields . | . . . Core Remaining (%) 89 | 100 79 . Volleys Fired 37 | 1 35 1 Largest 2 | 1 2 1 Hottest 80 | 40 80 30 Shots Fired 39 | 1 37 1 Gun 25 | 1 24 . Cannon 6 | . 6 . Launcher 8 | . 7 1 Special . | . . . Kinetic 6 | . 6 . Thermal 12 | . 12 . Explosive 8 | . 7 1 Electromagnetic 13 | 1 12 . Robot Hit Streak 8 | 1 8 . Robot Miss Streak 2 | . 2 1 Penetration Max . | . . . Secondary Targets . | . . . Shots Hit Robots 22 | 1 21 . Core Hits 18 | . 16 2 Critical Hits . | . . . Critical Kills . | . . . Critical Parts Destroyed . | . . . Melee Attacks . | . . . Impact . | . . . Slashing . | . . . Piercing . | . . . Sneak Attacks . | . . . Combat Hostiles . | . . . Follow-up Attacks . | . . . Damage Inflicted 805 | 13 760 32 Guns 178 | 13 165 . Cannons 90 | . 90 . Explosions 535 | . 505 30 Melee . | . . . Ramming 2 | . . 2 Kinetic 90 | . 90 . Thermal 186 | . 186 . Explosive 416 | . 386 30 Electromagnetic 111 | 13 98 . Impact . | . . . Slashing . | . . . Piercing . | . . . Highest Corruption 1 | . 1 . Average Corruption 1 | . 1 . Corruption Purged . | . . . Effects 2 | . 2 . Energy Discharges 1 | . 1 . Targeting Errors 1 | . 1 . Overload Shots . | . . . Overflow Damage 30 | . 17 13 Projectiles . | . . . Explosions 30 | . 17 13 Melee . | . . . Knockbacks 1 | . 1 . Impact . | . . . Kinetic 1 | . 1 . Secondary . | . . . Self-Inflicted Damage 122 | . 83 39 Shots 5 | . 4 1 Rammed 3 | . . 3 Targets Rammed 3 | . . 3 Kicked . | . . . Crushed . | . . . Highest Temperature 36 | . 36 . Average Temperature 15 | . 15 . Received Heat Transfer 480 | . 141 339 Siege Activations . | . . . Robots Corrupted . | . . . Combat Hostiles . | . . . Parts Fried . | . . . Impact Corruptions . | . . . Robots Melted . | . . . Combat Hostiles . | . . . Parts Melted . | . . . Heat Transferred 300 | . 300 . Parts Sabotaged . | . . . Parts Stolen . | . . . Parts Stripped . | . . . Power Chain Reactions 3 | . 3 . Missiles Intercepted . | . . . Alert | -11 -10 -9 ------- Run | Scr Mat Mat Peak Influence 191 | . 191 36 Initial 3 | . . 3 Average 20 | . 22 17 Maximum Alert Level . | . . . Low Security (%) 100 | 100 100 100 Level 1 . | . . . Level 2 . | . . . Level 3 . | . . . Level 4 . | . . . Level 5 . | . . . High Security . | . . . Max Security . | . . . Squads Dispatched 2 | . 1 1 Investigation 1 | . 1 . Extermination . | . . . Reinforcement 1 | . . 1 Assault . | . . . Garrison . | . . . Intercept . | . . . Construction Impeded . | . . . Haulers Reinforced . | . . . Stealth | -11 -10 -9 --------- Run | Scr Mat Mat Distress Signals . | . . . Communications Jammed . | . . . Distress Signals . | . . . Times Spotted 13 | . 8 5 Peak Tracking Total 4 | . 3 4 Tactical Retreats 1 | . 1 . Traps | -11 -10 -9 ------- Run | Scr Mat Mat Traps Triggered 1 | . 1 . Indirectly . | . . . Trap Hack Attempts . | . . . Triggered . | . . . Disarmed . | . . . Reprogrammed . | . . . Reused . | . . . Traps Extracted . | . . . Installed . | . . . Triggered . | . . . Machines | -11 -10 -9 ---------- Run | Scr Mat Mat Machines Disabled 5 | . 3 2 Max in Single Turn 2 | . 2 2 Machines Sabotaged . | . . . Garrisons Compromised . | . . . Overloaded Fab Kills . | . . . Fab Network Shutdowns . | . . . Hacking | -11 -10 -9 --------- Run | Scr Mat Mat Machines Accessed 4 | . 3 1 Terminals 2 | . 2 . Fabricators . | . . . Repair Stations . | . . . Recycling Units 2 | . 1 1 Scanalyzers . | . . . Garrison Access . | . . . Total Hacks 14 | . 12 2 Successful 10 | . 10 . Failed 4 | . 2 2 Catastrophic . | . . . Database Lockouts . | . . . Manual . | . . . Terminals 9 | . 9 . Fabricators . | . . . Repair Stations . | . . . Recycling Units 5 | . 3 2 Scanalyzers . | . . . Garrison Access . | . . . Terminal Hacks 8 | . 8 . Record 5 | . 5 . Emergency Access Points 1 | . 1 . Recall Reinforcements 1 | . 1 . Hauler Manifests 1 | . 1 . Fabricator Hacks . | . . . Repair Station Hacks . | . . . Recycling Unit Hacks 2 | . 2 . Recycle Component 1 | . 1 . Process 1 | . 1 . Scanalyzer . | . . . Garrison Access Hacks . | . . . Unauthorized Hacks . | . . . Terminals . | . . . Fabricators . | . . . Repair Stations . | . . . Recycling Units . | . . . Scanalyzers . | . . . Garrison Access . | . . . Data Cores Recovered . | . . . Used . | . . . Hacking Detections 4 | . 3 1 Full Trace Events 1 | . 1 . Feedback Events 1 | . 1 . Corruption 1 | . 1 . Feedback Blocked . | . . . Robot Schematics Acquired . | . . . Robots Built . | . . . Matter . | . . . Time . | . . . Total Robot Build Rating . | . . . Part Schematics Acquired . | . . . Parts Built . | . . . Matter . | . . . Time . | . . . Total Part Build Rating . | . . . Parts Repaired . | . . . Time . | . . . Parts Recycled 1 | . 1 . Recycled Matter 342 | . 342 . Retrieved Matter . | . . . Retrieved Components . | . . . Parts Scanalyzed . | . . . Part Schematics Acquired . | . . . Parts Damaged . | . . . Bothacking | -11 -10 -9 ------------ Run | Scr Mat Mat Used RIF Installer . | . . . Robots Hacked . | . . . Non-combat . | . . . Combat . | . . . Robot Hacks Applied . | . . . Relay Couplers Released . | . . . Robots Rewired . | . . . Allies Hacked . | . . . Hacks Repelled . | . . . Allies | -11 -10 -9 -------- Run | Scr Mat Mat Total Allies . | . . . Largest Group . | . . . Highest-Rated Group . | . . . Highest-Rated Ally . | . . . Total Orders . | . . . Ally Attacks . | . . . Total Damage . | . . . Kills . | . . . Allies Corrupted . | . . . Allies Melted . | . . . Intel | -11 -10 -9 ------- Run | Scr Mat Mat Robot Analysis Total . | . . . Derelict Logs Recovered . | . . . Drone Launches . | . . . Drone Recoveries . | . . . Exploration | -11 -10 -9 ------------- Run | Scr Mat Mat Turns Passed 1094 | 71 867 156 Spaces Moved 815 | 48 659 108 Core 52 | 16 4 32 Treads 197 | 32 165 . Legs . | . . . Wheels 321 | . 321 . Hover 245 | . 169 76 Flight . | . . . Fastest Speed 50 | 50 56 56 Average Speed 108 | 123 105 123 Slowest Speed 250 | 160 250 250 Overloaded Moves . | . . . Propulsion Burnouts . | . . . Robots Hopped . | . . . Cave-ins Triggered . | . . . Exploration Rate (%) 25 | 4 59 14 Regions Visited 2 Branch Regions . Pre-discovered Areas . | . . . Known Exits Taken . | . . . Unknown Exits Taken 2 | 1 1 . Scrap Searched . | . . . Spaces Dug . | . . . Terrain Destroyed 73 | . 68 5 Melee . | . . . Projectile . | . . . AOE 73 | . 68 5 Terrain Rammed . | . . . Walls Destroyed . | . . . Machines Disabled . | . . . Actions | -11 -10 -9 --------- Run | Scr Mat Mat Total 991 | 59 801 131 Wait 45 | . 45 . Move 813 | 47 658 108 Hop . | . . . Pick Up 34 | 6 23 5 Fast Attach 2 | . 2 . Attach 21 | 5 10 6 Detach 8 | . 2 6 Swap 8 | . 7 1 Drop 20 | . 19 1 Fire 37 | 1 35 1 Melee . | . . . Ram 3 | . . 3 Kick . | . . . Crush . | . . . Escape Stasis . | . . . Rewire . | . . . Trap . | . . . Miscellaneous . | . . . Route ------- -11/Scrapyard -10/Materials (discovered 2 exits: *Mat / [*Min]) -9/Materials History --------- Turn | Location | Event 3 | -11/Scrapyard | Discovered new exit (range 15) 72 | -11/Scrapyard | Entered Materials 312 | -10/Materials | Build established: Mutant 630 | -10/Materials | Discovered new exit (range 14) 898 | -10/Materials | Discovered new exit (range 15) 939 | -10/Materials | Entered another Materials area 939 | -9/Materials | Evolved 2 slots: Power x1, Utility x1 1057 | -9/Materials | Core integrity fell below 50% 1073 | -9/Materials | Lost 3 parts (1p2n) 1076 | -9/Materials | Core integrity fell below 20% 1095 | -9/Materials | Destroyed by G-34 Mercenary with Small Laser Last Messages --------------- 00945_ Destroyed Lgt. Ion Engine. 00945_ O-16 Technician destroyed. 00962_ Acquired Lgt. Ion Engine. 00965_ Acquired Hover Unit. 00968_ Acquired 9 matter. 00980_ Acquired Lgt. EM Pulse Cannon. 00982_ Dropped EM Pulse Gun. 00986_ Acquired Particle Cannon. 00990_ Connecting with Recycling Unit... 00990_ Current location identified: Materials 01005_ Acquired Ion Engine. 01009_ Discarded Terrain Scan Processor. 01017_ Hover Unit destroyed. 01022_ K-01 Serf collects debris. 01041_ Hover Unit destroyed. 01042_ Ion Engine destroyed. 01053_ Slammed into G-34 Mercenary. 01054_ Destabilizing: Core damaged (-4). 01056_ Slammed into G-34 Mercenary. 01088_ U-05 Engineer lays Concrete. Map ----- +----------------------------------------------------+ | ?????????????????????????????????????????????????? | | ?????????????????????????????????????????????????? | | ?????????????????????????????????????????????????? | | ?????????????????????????????????????????????????? | | ?????????????????????????????????????????????????? | | ?????????????????????????????????????????????????? | | ?????????????????????????????????????????????????? | | ?????????????????????????????????????????????????? | | ?????????????????????????????????????????????????? | | ?????????????????????????????????????????????????? | | ?????????????????????????????????????????????????? | | ?????????????????????????????????????????????????? | | ???#####?????????????????????????????????????????? | | """ #?????????????????????????????????????????? | | """" #?????????????????????????????????????????? | | """" #?????????????????????????????????????????? | | """" #?????????????????????????????????????????? | | """ #?????????????????????????????????????????? | | #?????????????????????????????????????????? | | #?????????????????????????????????????????? | | #?????????????????????????????????????????? | | ##+#####???###???????????????????????????????????? | | #######T####################### #?????????? | | g u a #?????????? | | g #?????????? | | Y r @ #?????????? | | ###+#########################???????????????? | | # ##???????????????????????????????????????????? | | # #????????????????????????????????????????????? | | # #????????????????????????????????????????????? | | + #????????????????????????????????????????????? | | # #????????????????????????????????????????????? | | # #????????????????????????????????????????????? | | # #????????????????????????????????????????????? | | # ##########???????????????????????????????????? | | # # #???????????????????????????????????? | | # # """ #???????????????????????????????????? | | # + """ #???????????????????????????????????? | | # # """ #???????????????????????????????????? | | # # #???????????????????????????????????? | | # # """ #???????????????????????????????????? | | # # """ #???????????????????????????????????? | | + # """ #???????????????????????????????????? | | # # #???????????????????????????????????? | | # #########????????????????????????????????????? | | # #????????????????????????????????????????????? | | # ###########??????????????????????????????????? | | # # = ! #??????????????????????????????????? | | # # #??????????????????????????????????? | | # """ #??????????????????????????????????? | +----------------------------------------------------+ Best States ------------- Heat Dissipation 28 Energy Generation 10 Energy Capacity 325 Matter Stores 300 Matter Capacity 300 Sight Range 16 Robot Scan Range 10 Terrain Scan Range 14 Terrain Scan Density 85 Resistance: KI 20 Resistance: TH 20 Resistance: EX 20 Resistance: EM 20 Resistance: I 20 Resistance: S 20 Resistance: P 20 Evasion (%) 53 Recoil Reduction 2 Offensive Hacking 10 Item Schematics ----------------- None Robot Schematics ------------------ None Fabricated ------------ Nothing Alien Tech Used ----------------- None Achievements -------------- None Challenges ------------ None Game ------ Seed RemoteSiegeTrap Manual? 0 Play Time 00:42:38 Cumulative 2.9 hours Start 2022.02.17 @ 06:38:34 End 2022.02.17 @ 07:57:16 Sessions 1 Manual Loads 0 Difficulty Adventurer Special Mode None Game No. 5 Rogue 0 Adventurer 5 Explorer 0 Win Type - Total 0 Types 0/0/0/0/0/0/0/0/0 Lore% 2 Gallery% 5 Achievement% 4 Wizard Run 0 Options --------- ASCII 0 Keyboard 0 Movement Mouse Keybinds 0 Fullscreen 1 Font 16/Proggy Map View 76x50 Tactical HUD 1 Map Filters NONE Filters NONE Steam 1 RUN: 7e1fa16b-0efd-4f01-8e6a-a01cfd249546